bitfinex/quotes_ETHUSD_20250217
["timestamp","ask_amount","ask_price","bid_price","bid_amount"]
[1739798682124,6.94696316,2775.7,2775.1,4.41236]
[1739798682417,10.54973316,2775.7,2775.1,4.41236]
[1739798682649,6.94695316,2775.7,2775.2,3.64776716]
[1739798682981,6.94694316,2775.7,2775.2,3.64776716]
[1739798684995,10.54970316,2775.7,2775.2,3.64776716]
[1739798685313,6.94694316,2775.7,2775.2,3.64776716]
[1739798685516,0.7932,2776.0,2775.2,3.64776716]
[1739798685517,0.7932,2776.0,2775.4,3.60303]
[1739798685834,5.34,2776.2,2775.9,3.60242]
[1739798686311,5.34,2776.2,2776.0,0.03814388]
[1739798686513,0.8039,2776.7,2776.0,0.03814388]
[1739798686829,3.60133,2776.8,2776.3,4.43144]
[1739798687328,3.60133,2776.8,2776.4,0.03775153]
[1739798687532,7.2027,2776.8,2776.4,0.03775153]
[1739798687749,3.60147,2776.7,2776.4,0.03775153]
[1739798688058,0.8039,2777.0,2776.5,3.60158]
[1739798688207,3.60096,2777.1,2776.5,3.60158]
[1739798688553,3.0,2777.0,2776.6,0.04416079]
[1739798688708,3.0,2777.0,2776.5,3.60158]
[1739798689407,6.60102,2777.0,2776.5,3.60158]
[1739798690105,4.40056432,2777.1,2776.0,0.8193]
[1739798690106,3.0,2776.8,2776.0,0.8193]
[1739798690347,4.39231,2776.4,2775.8,4.42178]
[1739798690504,0.7904,2776.4,2776.1,0.04867454]
[1739798690707,0.7904,2776.4,2776.0,3.60229]
[1739798690906,4.39226,2776.4,2776.2,0.0442412]
[1739798691105,3.60204,2776.2,2776.1,0.04428086]
[1739798691405,3.60225,2776.1,2775.5,0.8193]
[1739798691741,3.60231,2776.0,2775.5,4.42221]
[1739798691935,3.60251,2775.9,2775.5,0.8193]
[1739798692134,3.60271,2775.7,2775.2,1.53641899]
[1739798692336,3.60271,2775.7,2775.2,0.8248]
[1739798692535,3.60271,2775.7,2775.0,0.8248]
[1739798692719,0.720482,2775.8,2775.0,0.8248]
[1739798692720,3.60296,2775.5,2775.0,0.8248]
[1739798693730,3.60296,2775.5,2775.0,4.42833]
[1739798694205,0.720482,2775.8,2775.1,3.60338]
[1739798694410,3.7656,2775.9,2775.3,3.60321]
[1739798694611,3.0,2775.9,2775.3,3.60321]
[1739798694851,3.60257,2775.8,2775.3,3.60321]
[1739798695067,3.0,2775.9,2775.4,3.60301]
[1739798695272,0.7953,2776.1,2775.6,3.60278]
[1739798696071,3.60231,2776.0,2775.5,3.963131]
[1739798696475,4.39754,2776.1,2775.5,7.565971]
[1739798696759,3.60251,2775.9,2775.4,0.7806]
[1739798696930,3.60264,2775.8,2775.3,3.60314]
[1739798697135,3.60264,2775.8,2775.2,0.7534]
[1739798697325,3.60269,2775.7,2775.2,0.7534]
[1739798697721,3.60264,2775.8,2775.2,0.7534]
[1739798698361,7.20532,2775.8,2775.3,3.60317]
[1739798698569,3.60238,2776.0,2775.2,0.7534]
[1739798698740,4.39752,2776.1,2775.5,3.60288]
[1739798699075,3.60238,2776.0,2775.4,3.60298]
[1739798699363,3.60238,2776.0,2775.3,3.60312]
[1739798699364,3.60257,2775.8,2775.3,3.60312]
[1739798700026,3.60257,2775.8,2775.2,0.7534]
[1739798700222,3.60278,2775.7,2775.2,0.7534]
[1739798700470,3.60278,2775.7,2775.2,4.35671]
[1739798700622,3.60282,2775.6,2775.2,0.7534]
[1739798700831,3.60282,2775.6,2774.9,3.60367]
[1739798700832,3.60313,2775.4,2774.9,7.96031]
[1739798701034,3.60313,2775.4,2774.9,4.35664]
[1739798701232,3.60313,2775.4,2774.9,7.96027]
[1739798701450,3.60313,2775.4,2774.9,7.96029]
[1739798701653,4.3633,2775.6,2775.0,3.60359]
[1739798701852,7.206,2775.5,2775.0,3.60359]
[1739798702054,3.60296,2775.5,2775.0,3.60359]
[1739798702256,3.60308,2775.4,2774.9,4.35663]
[1739798702425,3.60308,2775.4,2775.0,3.60358]
[1739798702984,0.7604,2775.6,2775.0,3.60358]
[1739798703144,3.60295,2775.5,2775.0,3.60358]
[1739798703983,3.60295,2775.5,2774.9,4.35663]
[1739798704286,3.60296,2775.5,2774.9,4.35663]
[1739798704470,3.60296,2775.5,2775.0,3.60359]
[1739798704671,3.60308,2775.4,2774.9,4.35663]
[1739798705687,7.63607279,2775.5,2775.0,3.60351]
[1739798705888,3.60296,2775.5,2775.0,3.60351]
[1739798706091,4.36323,2775.6,2775.1,3.6034]
[1739798706286,0.7604,2775.6,2775.1,3.6034]
[1739798706507,3.60295,2775.5,2775.1,3.6034]
[1739798707379,3.60295,2775.5,2774.9,4.35663]
[1739798707575,0.7604,2775.6,2775.1,3.60345]
[1739798707779,0.7604,2775.6,2775.1,3.60339]
[1739798707980,3.60305,2775.5,2775.0,3.60353]
[1739798708195,3.60316,2775.4,2774.9,5.325313]
[1739798708501,3.60305,2775.5,2775.0,3.60358]
[1739798708708,3.60295,2775.5,2775.0,3.70198]
[1739798709290,3.60295,2775.5,2775.1,3.60341]
[1739798709499,4.3633,2775.6,2775.1,3.60341]
[1739798709696,3.6029,2775.6,2775.1,3.60341]
[1739798709883,3.6029,2775.6,2775.1,3.60338]
[1739798710268,3.60289,2775.6,2775.1,3.60338]
[1739798710468,3.60289,2775.6,2775.1,3.60339]
[1739798711315,3.60301,2775.5,2775.1,3.60338]
[1739798712321,3.60296,2775.5,2775.1,3.60338]
[1739798712712,3.60273,2775.7,2775.2,3.60327]
[1739798713103,7.20553,2775.7,2775.2,3.60327]
[1739798713316,3.60273,2775.7,2775.2,3.60327]
[1739798713816,3.60273,2775.7,2775.3,3.60318]
[1739798714417,3.0,2775.9,2775.4,0.8106]
[1739798714623,3.60277,2775.7,2775.2,4.41392]
[1739798715913,4.40797,2775.7,2775.2,4.41392]
[1739798716116,3.60347,2775.1,2775.0,0.0984]
[1739798716321,3.60312,2775.4,2775.0,0.0984]
[1739798716543,3.60321,2775.3,2775.0,0.0984]
[1739798717240,0.8052,2775.7,2775.0,0.543722]
[1739798717445,4.15162,2776.6,2775.0,0.543722]
[1739798717446,6.1605,2776.0,2775.1,0.7537]
[1739798717615,4.42282,2776.0,2775.5,3.60286]
[1739798717964,3.60267,2775.8,2775.1,9.68707]
[1739798718101,0.8205,2776.0,2775.1,9.68707]
[1739798718445,0.7523,2775.5,2775.1,5.33]
[1739798718624,3.60279,2775.7,2775.1,9.915895]
[1739798718797,3.60283,2775.6,2775.2,0.7933]
[1739798718997,3.60279,2775.7,2775.2,0.7933]
[1739798718998,3.60298,2775.5,2775.2,0.7933]
[1739798719237,3.60298,2775.5,2775.1,8.93342]
[1739798719421,3.60291,2775.6,2775.1,12.53681]
[1739798719624,3.60291,2775.6,2775.1,5.33]
[1739798719824,7.20628,2775.4,2775.1,5.33]
[1739798720033,3.60309,2775.4,2775.0,0.916]
[1739798720417,3.60309,2775.4,2775.0,4.51956]
[1739798720618,4.40903,2775.6,2775.1,3.60346]
[1739798721199,4.40893,2775.6,2775.1,3.60341]
[1739798721514,3.60295,2775.5,2775.1,4.055331]
[1739798721715,7.20576,2775.6,2775.1,4.055331]
[1739798721944,3.60286,2775.6,2775.1,7.658721]
[1739798722143,3.60286,2775.6,2775.1,4.055331]
[1739798725145,3.60286,2775.6,2775.2,3.60328]
[1739798725643,3.60286,2775.6,2775.1,3.60339]
[1739798726031,3.60286,2775.6,2775.0,0.916]
[1739798726348,3.6027,2775.7,2775.2,3.60333]
[1739798727045,4.35586,2775.8,2775.2,3.60333]
[1739798727247,3.60269,2775.7,2775.2,3.60333]
[1739798727405,7.20556,2775.7,2775.2,3.60333]
[1739798727753,7.20555,2775.7,2775.2,3.60333]
[1739798727947,3.60277,2775.7,2775.2,3.60333]
[1739798728154,7.20555,2775.7,2775.2,3.60333]
[1739798728504,7.20554,2775.7,2775.2,3.60333]
[1739798729979,3.60257,2775.8,2775.4,3.60303]
[1739798730887,3.8182,2776.0,2775.3,3.6032]
[1739798731176,3.60263,2775.8,2775.3,3.60312]
[1739798731382,3.60269,2775.7,2775.2,4.415613]
[1739798731734,3.60269,2775.7,2775.3,3.60318]
[1739798732135,3.60269,2775.7,2775.2,8.018883]
[1739798732537,3.60269,2775.7,2775.3,3.6032]
[1739798734917,0.8182,2776.0,2775.6,3.60274]
[1739798735138,0.7527,2776.3,2775.8,3.60251]
[1739798735290,3.6018,2776.4,2776.0,3.60229]
[1739798735477,3.60166,2776.5,2776.0,3.60229]
[1739798735879,6.60175,2776.5,2776.0,3.6023]
[1739798736111,3.0,2776.5,2776.1,3.6021]
[1739798736521,3.6014,2776.7,2776.2,3.60201]
[1739798736719,3.6014,2776.7,2776.3,0.8262]
[1739798737107,3.60127,2776.8,2776.3,0.8262]
[1739798737308,3.60154,2776.6,2776.3,0.8262]
[1739798738025,3.6014,2776.7,2776.3,0.8262]
[1739798739111,3.60161,2776.6,2776.3,0.8262]
[1739798739475,3.60161,2776.6,2776.1,4.38187]
[1739798739718,3.60161,2776.6,2776.1,5.224564]
[1739798739890,3.60161,2776.6,2776.1,1.622394]
[1739798740421,3.60151,2776.7,2776.1,4.38183]
[1739798741128,3.60126,2776.8,2776.1,4.38183]
[1739798741499,3.6015,2776.7,2776.1,4.38183]
[1739798742214,3.60153,2776.6,2776.1,4.38183]
[1739798742729,3.60153,2776.6,2776.2,3.60203]
[1739798744826,3.60126,2776.8,2776.3,3.60184]
[1739798744827,3.60127,2776.8,2776.3,3.60184]
[1739798745533,7.20261,2776.8,2776.3,3.60184]
[1739798745881,7.20263,2776.8,2776.3,3.60184]
[1739798746334,3.60127,2776.8,2776.3,3.60184]
[1739798746518,7.20265,2776.8,2776.3,3.60184]
[1739798746719,3.60147,2776.7,2776.2,3.60203]
[1739798746890,3.60158,2776.6,2776.1,4.38186]
[1739798747431,3.60158,2776.6,2776.1,0.7797]
[1739798747605,3.60158,2776.6,2776.2,3.60202]
[1739798747974,3.60158,2776.6,2775.7,3.60268]
[1739798747975,3.6023,2776.0,2775.5,3.60287]
[1739798748123,3.60251,2775.9,2775.5,0.7883]
[1739798749024,3.60264,2775.8,2775.5,0.7883]
[1739798749526,0.7954,2776.1,2775.5,0.7883]
[1739798749527,3.60255,2775.9,2775.5,0.7883]
[1739798752157,3.60255,2775.9,2775.5,4.39123]
[1739798752357,3.60233,2776.0,2775.5,4.39123]
[1739798753253,3.60245,2775.9,2775.5,0.7883]
[1739798753477,3.60232,2776.0,2775.5,4.39117]
[1739798753989,3.60232,2776.0,2775.5,7.99406]
[1739798754153,3.60232,2776.0,2775.5,4.39117]
[1739798754353,0.7954,2776.1,2775.5,4.39117]
[1739798754554,4.39758,2776.1,2775.6,3.60274]
[1739798754873,5.34,2776.5,2776.0,3.60227]
[1739798755199,3.60182,2776.4,2776.1,0.7724]
[1739798755501,3.60182,2776.4,2775.9,0.7724]
[1739798755999,3.60173,2776.5,2776.0,3.60224]
[1739798756500,3.60185,2776.4,2775.9,4.37482]
[1739798758600,3.60184,2776.4,2775.9,4.37482]
[1739798760323,3.60173,2776.5,2775.9,4.37482]
[1739798760620,3.60187,2776.4,2775.9,4.37482]
[1739798761016,3.60192,2776.3,2775.9,4.37482]
[1739798762124,3.60181,2776.4,2775.9,4.37482]
[1739798762320,3.60173,2776.5,2775.9,4.37476]
[1739798762476,3.60173,2776.5,2776.0,3.60223]
[1739798762823,7.20349,2776.5,2776.0,3.60223]
[1739798763121,3.60179,2776.4,2776.0,3.6023]
[1739798763925,3.60173,2776.5,2776.0,3.6023]
[1739798764122,0.7719,2776.7,2776.0,4.43604183]
[1739798764418,3.60139,2776.7,2776.2,3.60198]
[1739798764622,0.7993,2776.6,2775.8,0.7643]
[1739798764973,3.60104,2777.0,2775.6,5.33]
[1739798764974,3.6024,2776.0,2775.6,5.33]
[1739798765173,3.60259,2775.8,2775.6,5.33]
[1739798765379,3.60259,2775.8,2775.5,0.7643]
[1739798765694,3.60244,2775.9,2775.5,0.7643]
[1739798766513,3.60266,2775.8,2775.5,0.7643]
[1739798771801,3.60249,2775.9,2775.5,0.7643]
[1739798776742,3.60243,2775.9,2775.5,0.7643]
[1739798781242,3.60232,2776.0,2775.5,0.7643]
[1739798781451,3.60263,2775.8,2775.5,0.7643]
[1739798790678,7.20528,2775.8,2775.4,3.60306]
[1739798790877,3.60263,2775.8,2775.4,3.60306]
[1739798796585,3.60263,2775.8,2775.4,4.937902]
[1739798797857,3.6023,2776.0,2775.4,3.60307]
[1739798798065,3.60259,2775.8,2775.4,3.60307]
[1739798800966,3.60249,2775.9,2775.4,3.60307]
[1739798801148,3.60234,2776.0,2775.4,3.60307]
[1739798801357,3.60256,2775.8,2775.4,3.60307]
[1739798802237,3.60249,2775.9,2775.5,0.8029]
[1739798803135,2.39532404,2776.3,2775.5,0.8029]
[1739798803335,3.60277,2775.7,2775.3,8.93321]
[1739798803532,3.60277,2775.7,2775.3,9.71301]
[1739798804080,3.60306,2775.5,2775.3,6.1098]
[1739798804230,3.60306,2775.5,2775.3,0.7798]
[1739798804429,3.60306,2775.5,2775.0,0.0984]
[1739798804430,3.60306,2775.5,2775.1,0.7798]
[1739798804643,5.22497404,2775.9,2775.1,0.7798]
[1739798804876,3.60347,2775.1,2775.0,0.0984]
[1739798805573,5.22599404,2775.1,2775.0,0.0984]
[1739798805733,8.22599404,2775.1,2775.0,0.0984]
[1739798807434,18.07649404,2775.1,2775.0,0.0984]
[1739798807628,20.24447844,2775.1,2775.0,0.0984]
[1739798808603,18.6219544,2775.1,2775.0,0.0984]
[1739798810518,9.5979544,2775.1,2775.0,0.0984]
[1739798811120,18.6219544,2775.1,2775.0,0.0984]
[1739798812949,19.1719544,2775.1,2775.0,0.0984]
[1739798815797,3.60438,2774.4,2773.8,0.8168]
[1739798816110,3.55,2775.0,2773.9,0.8248]
[1739798816111,6.1389,2774.7,2773.9,0.8248]
[1739798816295,0.7989,2775.0,2774.2,0.8248]
[1739798816499,7.9737,2774.6,2774.1,3.60469]
[1739798816744,4.36949,2774.6,2774.3,0.0443076]
[1739798817038,0.436949,2774.5,2774.0,1.53184139]
[1739798817356,3.0,2774.7,2774.4,0.7592]
[1739798817645,6.60402,2774.7,2774.4,0.7592]
[1739798817847,3.60421,2774.6,2774.5,0.04423602]
[1739798818026,1.020822,2774.6,2774.5,0.04423602]
[1739798818194,3.0,2774.7,2774.2,3.60464]
[1739798818395,5.34,2775.0,2774.5,0.04422819]
[1739798818595,3.60316,2775.4,2774.9,4.41193]
[1739798819108,3.60298,2775.5,2775.0,3.60352]
[1739798819324,3.60319,2775.4,2775.0,0.04826901]
[1739798819526,3.60335,2775.2,2775.0,0.04826901]
[1739798820447,4.37465,2775.2,2775.0,0.04826901]
[1739798820639,3.60335,2775.2,2775.0,0.04826901]
[1739798820815,0.360319,2775.3,2774.6,0.8003]
[1739798821012,0.7733,2775.6,2775.1,0.04808755]
[1739798821246,3.60325,2775.3,2774.6,0.8003]
[1739798821451,5.34,2775.9,2775.2,0.0480439]
[1739798821598,7.20481,2776.0,2775.3,7.99291]
[1739798821799,4.400201,2776.0,2775.5,3.60293]
[1739798821997,0.797811,2776.0,2775.5,3.60293]
[1739798822222,4.400161,2776.0,2775.6,0.05922309]
[1739798823114,6.1703,2776.3,2775.7,3.60269]
[1739798823448,5.27219123,2776.4,2775.9,3.60238]
[1739798823756,3.0,2776.3,2775.7,4.37603]
[1739798823928,3.60204,2776.2,2775.7,0.7734]
[1739798824114,3.60244,2775.9,2775.4,4.37645]
[1739798824300,3.60219,2776.1,2775.5,3.60286]
[1739798825008,3.60219,2776.1,2775.5,3.60284]
[1739798825211,8.27219123,2776.4,2775.8,3.60251]
[1739798825418,3.60193,2776.3,2775.9,0.7507]
[1739798825626,3.60193,2776.3,2775.6,3.60274]
[1739798825805,3.60225,2776.1,2775.6,4.35344]
[1739798826638,3.60225,2776.1,2775.6,0.7507]
[1739798827356,4.322672,2776.1,2775.6,0.7507]
[1739798827539,3.60289,2775.6,2775.3,6.0937]
[1739798827864,3.60289,2775.6,2775.3,0.7637]
[1739798828352,3.60308,2775.4,2775.3,0.7637]
[1739798828656,7.20657,2775.3,2774.8,0.7637]
[1739798828816,3.60324,2775.3,2774.8,0.7637]
[1739798829141,0.720597,2775.4,2774.9,0.09433499]
[1739798829340,4.41445,2775.7,2775.0,3.60353]
[1739798829512,3.60275,2775.7,2775.2,0.7865]
[1739798829712,3.60284,2775.6,2775.2,0.7865]
[1739798830155,3.60296,2775.5,2775.2,0.7865]
[1739798830815,3.60309,2775.4,2774.9,0.7502]
[1739798831015,4.323683,2775.4,2774.9,4.35389]
[1739798831455,4.323683,2775.4,2774.9,4.35386]
[1739798831755,3.60272,2775.7,2775.0,3.6036]
[1739798831954,3.60262,2775.8,2774.9,3.44294134]
[1739798832130,3.60262,2775.8,2775.4,0.7502]
[1739798832326,3.60262,2775.8,2775.2,0.7688]
[1739798832525,0.360262,2775.7,2775.2,0.7688]
[1739798832759,3.60284,2775.6,2775.2,0.7688]
[1739798834656,3.60284,2775.6,2775.1,3.60347]
[1739798835047,3.60296,2775.5,2775.0,0.7582]
[1739798835244,3.6032,2775.4,2775.0,0.7582]
[1739798835953,0.1496,2775.3,2775.0,0.7582]
[1739798837035,4.12814,2775.3,2774.7,4.36321]
[1739798837357,0.52488,2775.3,2774.7,0.7593]
[1739798837655,0.1496,2775.3,2774.9,3.60369]
[1739798838159,0.1496,2775.3,2774.8,3.60386]
[1739798838325,0.1496,2775.3,2774.9,3.60373]
[1739798838836,3.75284,2775.3,2774.8,3.60386]
[1739798839164,3.60353,2775.1,2774.7,0.7593]
[1739798839481,0.360353,2775.0,2774.7,0.7593]
[1739798839985,0.360353,2775.0,2774.5,0.7818]
[1739798840187,3.60388,2774.8,2774.3,4.38621]
[1739798840682,3.60388,2774.8,2774.4,0.09437557]
[1739798840879,3.604,2774.7,2774.4,0.09437557]
[1739798841295,3.60415,2774.6,2774.4,0.09437557]
[1739798841500,0.360415,2774.5,2774.4,0.09437557]
[1739798841795,3.60415,2774.6,2774.1,3.60472]
[1739798841971,3.60415,2774.6,2774.4,0.07864631]
[1739798842284,3.60415,2774.6,2774.1,3.6047]
[1739798842448,3.60394,2774.8,2774.4,0.07864631]
[1739798842648,3.60404,2774.7,2774.2,3.60461]
[1739798842857,4.324838,2774.7,2774.4,0.07864631]
[1739798843086,4.324838,2774.7,2774.3,0.07871911]
[1739798843241,4.324838,2774.7,2774.4,0.07864631]
[1739798843669,0.720798,2774.7,2774.0,4.13040635]
[1739798843873,3.60394,2774.8,2774.5,0.7524]
[1739798844250,3.60394,2774.8,2774.3,3.60444]
[1739798844589,3.60394,2774.8,2774.4,0.07864631]
[1739798845671,3.60366,2775.0,2774.4,0.07864631]
[1739798845896,0.438076,2774.9,2774.4,0.07864631]
[1739798846083,3.60394,2774.8,2774.4,0.07864631]
[1739798846259,3.60406,2774.7,2774.4,0.07864631]
[1739798846464,3.60394,2774.8,2774.4,0.07864631]
[1739798846892,3.60401,2774.7,2774.4,0.07864631]
[1739798847205,4.3686126,2774.7,2774.4,0.07864631]
[1739798847969,3.60401,2774.7,2774.4,0.07864631]
[1739798849271,3.60415,2774.6,2774.4,0.07864631]
[1739798849477,3.60401,2774.7,2774.4,0.07864631]
[1739798849683,3.60401,2774.7,2774.2,3.60457]
[1739798849896,3.60381,2774.9,2774.4,0.07864631]
[1739798849897,0.7603,2774.8,2774.4,0.07864631]
[1739798850097,3.60423,2774.6,2774.3,0.07871911]
[1739798850311,3.60423,2774.6,2774.4,0.07864631]
[1739798851120,3.60423,2774.6,2774.1,4.3772]
[1739798851417,3.60423,2774.6,2774.1,7.98187]
[1739798851718,3.60423,2774.6,2774.2,0.05982587]
[1739798851915,4.4371171,2774.6,2774.2,0.05982587]
[1739798852980,4.4371171,2774.6,2774.2,3.66445587]
[1739798853193,3.604,2774.7,2774.2,3.66445587]
[1739798855433,3.604,2774.7,2774.3,3.6045]
[1739798855794,3.604,2774.7,2774.4,0.05971667]
[1739798856318,3.604,2774.7,2774.2,3.60456]
[1739798856483,3.604,2774.7,2774.5,0.05966208]
[1739798856689,0.4724681,2774.6,2774.2,3.60456]
[1739798856890,3.604,2774.7,2774.6,0.05960749]
[1739798857102,3.604,2774.7,2774.2,3.60456]
[1739798857303,3.604,2774.7,2774.6,0.05960749]
[1739798857520,3.604,2774.7,2774.2,3.60456]
[1739798857997,3.604,2774.7,2774.3,0.05977127]
[1739798858325,4.7368481,2774.7,2774.3,0.05977127]
[1739798858514,4.724551,2774.8,2774.3,3.66425127]
[1739798859305,4.724551,2774.8,2774.3,0.05977127]
[1739798859600,4.36417,2774.8,2774.4,3.60437]
[1739798859803,3.60413,2774.6,2774.5,0.05966208]
[1739798860007,3.60413,2774.6,2774.1,4.37717]
[1739798860208,4.36428,2774.8,2774.2,0.05982587]
[1739798860417,3.60413,2774.6,2774.2,0.05982587]
[1739798861239,7.20832,2774.6,2774.2,0.05982587]
[1739798861388,3.60426,2774.5,2774.2,0.05982587]
[1739798861727,3.60451,2774.3,2774.2,0.05982587]
[1739798861910,3.60451,2774.3,2773.8,8.93516]
[1739798862099,3.60451,2774.3,2773.8,3.60516]
[1739798862305,3.60451,2774.3,2773.9,3.60496]
[1739798862499,4.38919,2774.4,2773.9,3.60496]
[1739798862700,1.223719,2774.4,2773.7,0.7505]
[1739798862907,3.60458,2774.3,2773.8,3.60516]
[1739798863137,3.60465,2774.2,2773.8,3.60516]
[1739798863297,3.60465,2774.2,2773.7,4.35577]
[1739798863496,3.60479,2774.1,2773.7,4.35577]
[1739798863697,3.60464,2774.2,2773.6,2.56154874]
[1739798863897,4.043584,2774.2,2773.7,3.60522]
[1739798864101,4.043584,2774.2,2773.7,7.21044]
[1739798864295,4.38927,2774.4,2773.7,3.6052]
[1739798864533,4.38927,2774.4,2773.6,2.56154874]
[1739798864742,3.60465,2774.2,2773.8,3.60513]
[1739798866578,4.38927,2774.4,2773.9,3.60496]
[1739798866880,3.60426,2774.5,2774.0,3.60484]
[1739798867593,3.60446,2774.4,2773.9,3.60496]
[1739798867877,3.60471,2774.2,2773.7,3.60528]
[1739798868658,3.60471,2774.2,2773.6,6.16686874]
[1739798868863,3.60471,2774.2,2773.8,3.60515]
[1739798869273,3.60451,2774.3,2773.8,3.60515]
[1739798869487,3.60479,2774.1,2773.6,2.56154874]
[1739798869779,4.3705,2774.0,2773.6,2.56154874]
[1739798870143,3.60514,2773.9,2773.6,2.56154874]
[1739798870487,4.41929,2773.7,2773.6,0.1529962]
[1739798870634,5.221735,2773.7,2773.6,0.1529962]
[1739798871569,8.221735,2773.7,2773.6,0.1529962]
[1739798871768,11.57034135,2773.7,2773.6,0.1529962]
[1739798871930,11.54234135,2773.7,2773.6,0.1529962]
[1739798872361,20.57034135,2773.7,2773.6,0.1529962]
[1739798872909,17.221735,2773.7,2773.6,0.1529962]
[1739798874608,22.561735,2773.7,2773.6,0.1529962]
[1739798876366,23.111735,2773.7,2773.6,0.1529962]
[1739798879265,26.46034135,2773.7,2773.6,0.1529962]
[1739798879761,23.111735,2773.7,2773.6,0.1529962]
[1739798881001,26.46034135,2773.7,2773.6,0.1529962]
[1739798882113,26.46034135,2773.7,2773.6,6.2e-06]
[1739798883311,23.111735,2773.7,2773.6,6.2e-06]
[1739798883508,23.382735,2773.7,2773.6,6.2e-06]
[1739798883687,23.111735,2773.7,2773.6,6.2e-06]
[1739798888518,22.561735,2773.7,2773.6,6.2e-06]
[1739798889079,23.111735,2773.7,2773.6,6.2e-06]
[1739798892795,23.382735,2773.7,2773.6,6.2e-06]
[1739798893377,23.111735,2773.7,2773.6,6.2e-06]
[1739798900926,20.111735,2773.7,2773.6,6.2e-06]
[1739798901528,23.111735,2773.7,2773.6,6.2e-06]
[1739798904043,22.561735,2773.7,2773.6,6.2e-06]
[1739798904647,23.111735,2773.7,2773.6,6.2e-06]
[1739798905549,26.46034135,2773.7,2773.6,6.2e-06]
[1739798905913,26.89345623,2773.7,2773.6,6.2e-06]
[1739798907538,27.25465623,2773.7,2773.6,6.2e-06]
[1739798907846,0.8076,2772.7,2772.1,0.7679]
[1739798908012,3.60678,2772.6,2772.1,5.173547]
[1739798909848,3.60678,2772.6,2772.2,0.8279]
[1739798910430,3.60652,2772.8,2772.3,3.60708]
[1739798910649,7.2131,2772.8,2772.4,0.8279]
[1739798910815,3.60662,2772.7,2772.4,0.8279]
[1739798911324,3.6064,2772.9,2772.4,0.8279]
[1739798911523,8.94629,2773.0,2772.5,3.60674]
[1739798911858,5.34,2773.0,2772.7,0.8279]
[1739798912076,3.60602,2773.2,2772.4,0.8279]
[1739798912077,0.7744,2773.2,2772.4,0.8279]
[1739798912210,3.60646,2772.9,2772.4,0.8279]
[1739798912413,3.60654,2772.8,2772.4,0.8279]
[1739798913050,3.60646,2772.9,2772.4,4.43487]
[1739798913252,3.60646,2772.9,2772.5,0.8279]
[1739798913656,3.60659,2772.7,2772.5,0.8279]
[1739798914450,3.60672,2772.6,2772.5,0.8279]
[1739798918765,3.60685,2772.5,2772.2,1.51214716]
[1739798919565,3.60679,2772.6,2772.2,1.51214716]
[1739798919867,3.60672,2772.6,2772.2,1.51214716]
[1739798920951,3.60667,2772.7,2772.2,5.11928716]
[1739798921154,3.60667,2772.7,2772.3,0.7748]
[1739798921354,7.21338,2772.7,2772.3,0.7748]
[1739798921535,3.60672,2772.6,2772.3,0.7748]
[1739798924264,3.60693,2772.5,2772.3,0.7748]
[1739798924831,3.60717,2772.3,2772.1,0.7725]
[1739798927377,3.60704,2772.4,2772.1,0.7725]
[1739798929682,3.60686,2772.5,2772.1,0.7725]
[1739798929846,3.60699,2772.4,2772.1,0.7725]
[1739798930246,3.60685,2772.5,2772.1,0.7725]
[1739798931175,3.60681,2772.6,2772.1,0.7725]
[1739798931376,3.60685,2772.5,2772.1,0.7725]
[1739798931881,3.60715,2772.3,2772.1,0.7725]
[1739798932386,3.60697,2772.5,2772.1,0.7725]
[1739798932740,0.441491,2772.6,2772.1,0.7725]
[1739798933075,3.60719,2772.3,2772.1,0.7725]
[1739798933679,3.60695,2772.5,2772.1,0.7725]
[1739798933882,3.60709,2772.4,2772.1,0.7725]
[1739798934046,3.60722,2772.3,2772.1,0.005]
[1739798934245,3.60724,2772.2,2772.1,0.005]
[1739798935753,6.60724,2772.2,2772.1,0.005]
[1739798938095,16.19124,2772.2,2772.1,0.005]
[1739798938591,20.34184635,2772.2,2772.1,0.005]
[1739798938799,23.41822439,2772.2,2772.1,0.005]
[1739798940586,20.06961804,2772.2,2772.1,0.005]
[1739798941098,9.68361804,2772.2,2772.1,0.005]
[1739798941296,3.60716,2772.3,2772.1,0.005]
[1739798942868,3.60712,2772.3,2772.1,0.005]
[1739798943284,3.60669,2772.7,2772.2,0.7601]
[1739798943461,3.60669,2772.7,2772.2,4.36726]
[1739798943660,3.60669,2772.7,2772.2,0.7601]
[1739798943870,3.60667,2772.7,2772.2,0.7601]
[1739798944160,3.60667,2772.7,2772.3,0.8138]
[1739798944568,3.60673,2772.6,2772.3,0.8138]
[1739798944764,3.60667,2772.7,2772.3,0.8138]
[1739798945099,7.21334,2772.7,2772.3,0.8138]
[1739798945299,3.60667,2772.7,2772.3,0.8138]
[1739798945896,3.60666,2772.7,2772.3,0.8138]
[1739798947700,1.27825933,2773.0,2772.6,0.7868]
[1739798947899,1.27825933,2773.0,2772.6,4.39344]
[1739798948101,1.27825933,2773.0,2772.7,3.60648]
[1739798948301,1.27825933,2773.0,2772.7,4.36138]
[1739798948512,1.27825933,2773.0,2772.7,0.7549]
[1739798948799,4.88445933,2773.0,2772.7,0.7549]
[1739798949377,3.60634,2772.9,2772.7,0.7549]
[1739798950278,4.88445933,2773.0,2772.7,0.7549]
[1739798950496,1.27825933,2773.0,2772.7,0.7549]
[1739798950694,4.88446933,2773.0,2772.7,0.7549]
[1739798950908,3.60646,2772.8,2772.7,0.7549]
[1739798951415,3.60636,2772.9,2772.7,0.7549]
[1739798951770,4.88453933,2773.0,2772.7,0.7549]
[1739798951970,3.60634,2772.9,2772.7,0.7549]
[1739798953575,3.60646,2772.8,2772.7,0.7549]